bitfinex-derivatives/quotes_ETHF0:USTF0_20260315
["timestamp","ask_amount","ask_price","bid_price","bid_amount"]
[1773565861350,19.12505777,2121.7,2121.2,0.12448791]
[1773565861647,8.83940204,2121.6,2120.8,40.8]
[1773565861850,8.83940204,2121.6,2120.9,6.42867255]
[1773565862048,8.83940204,2121.6,2121.0,6.42867255]
[1773565862349,8.83940204,2121.6,2121.1,6.42867255]
[1773565862550,8.83940204,2121.6,2120.8,40.80582411]
[1773565862746,8.83940204,2121.6,2120.9,6.42896427]
[1773565862946,8.83940204,2121.6,2121.0,6.42896427]
[1773565863150,10.4057,2121.7,2121.1,6.42896427]
[1773565863351,10.4057,2121.7,2121.2,6.42868431]
[1773565863545,10.4057,2121.7,2120.8,40.80582411]
[1773565863746,10.4057,2121.7,2120.9,6.42861126]
[1773565863942,19.22550076,2121.7,2121.0,6.42861126]
[1773565864251,8.81980076,2121.6,2120.8,0.00582411]
[1773565864453,8.81980076,2121.6,2120.9,6.42974134]
[1773565864650,8.81980076,2121.6,2121.0,6.42974134]
[1773565864851,8.81980076,2121.6,2120.8,0.00582411]
[1773565865054,9.25432871,2121.5,2120.9,6.42967648]
[1773565865350,9.25932364,2121.5,2121.0,6.42967648]
[1773565865540,9.25932364,2121.5,2120.8,0.00582411]
[1773565865745,9.25932364,2121.5,2120.9,6.43015552]
[1773565865945,9.25932364,2121.5,2121.0,6.43015552]
[1773565866142,9.25932364,2121.5,2120.8,0.00582411]
[1773565866347,9.25932364,2121.5,2120.9,6.4301357]
[1773565866551,9.25932364,2121.5,2121.0,6.4301357]
[1773565866747,9.25932364,2121.5,2120.8,0.00582411]
[1773565866947,9.25932364,2121.5,2120.9,6.43013854]
[1773565867148,9.25932364,2121.5,2121.0,6.43013854]
[1773565867348,9.25932364,2121.5,2120.8,0.00582411]
[1773565867544,8.71592734,2121.3,2120.9,6.43065765]
[1773565867750,8.71592734,2121.1,2120.4,3.89752565]
[1773565868151,8.71592734,2121.1,2120.4,44.69752565]
[1773565868549,8.71592734,2121.1,2120.5,0.03964491]
[1773565868749,9.18762734,2121.1,2120.5,0.04439704]
[1773565869654,9.18762734,2121.1,2120.5,0.00475213]
[1773565871257,8.71829335,2120.9,2120.2,3.89752565]
[1773565871456,8.71829335,2120.9,2120.1,3.89752565]
[1773565871650,8.71829335,2120.7,2120.1,44.69752565]
[1773565872255,8.71829335,2120.7,2120.1,44.701126]
[1773565872656,8.71829335,2120.7,2120.2,0.0074471]
[1773565873157,8.68897331,2121.0,2120.2,0.0074471]
[1773565873357,0.4717,2120.9,2120.2,0.0074471]
[1773565873850,0.4717,2120.9,2120.2,3.89752565]
[1773565874047,0.4717,2120.9,2120.3,3.89752565]
[1773565876355,20.95439045,2120.9,2120.3,3.89752565]
[1773565876560,20.95439045,2120.9,2120.2,3.89752565]
[1773565876860,9.16639045,2120.9,2120.2,3.89752565]
[1773565877861,6.72908045,2120.9,2120.4,1.67352423]
[1773565878256,10.0,2121.1,2120.4,1.67352423]
[1773565879454,7.90401544,2121.4,2120.6,1.59504303]
[1773565879654,7.90401544,2121.4,2120.8,1.6026606]
[1773565880063,11.788,2121.2,2120.8,1.6026606]
[1773565880563,11.788,2121.1,2120.8,1.6026606]
[1773565880862,0.00499493,2121.5,2120.5,3.89752565]
[1773565880863,7.88963185,2121.5,2120.9,6.37710412]
[1773565881063,10.18531967,2121.4,2120.6,3.89752565]
[1773565881257,7.88963185,2121.5,2120.7,6.37728236]
[1773565881459,7.88963185,2121.5,2120.8,6.37728236]
[1773565881663,8.69418332,2121.3,2120.9,6.42978482]
[1773565881864,8.69418332,2121.3,2121.0,6.37728236]
[1773565882157,10.18531967,2121.2,2120.9,0.05250246]
[1773565882355,8.69418332,2121.4,2121.0,6.37962251]
[1773565882559,10.17343475,2121.3,2120.9,0.05250246]
[1773565882765,10.17343475,2121.3,2121.0,6.37962718]
[1773565882954,8.69418332,2121.4,2120.9,0.05250246]
[1773565883159,18.87465058,2121.3,2121.0,6.37962659]
[1773565883362,8.70621076,2121.5,2120.9,0.02214155]
[1773565883562,10.17343475,2121.3,2121.0,6.38157239]
[1773565883764,10.17343475,2121.3,2120.9,0.02214155]
[1773565883964,8.70621076,2121.5,2121.0,6.38155497]
[1773565884159,8.70047882,2121.2,2121.1,6.38474324]
[1773565884366,8.70047882,2121.2,2120.8,3.89752565]
[1773565884560,8.69955242,2121.4,2120.9,6.38473946]
[1773565884760,18.87298717,2121.3,2121.0,6.38473946]
[1773565884960,18.87298717,2121.3,2120.8,3.89752565]
[1773565884961,18.87298717,2121.3,2121.1,6.38473946]
[1773565885265,18.87298717,2121.3,2121.2,5.74640489]
[1773565886056,18.87298717,2121.3,2120.9,3.89752565]
[1773565886057,8.48509173,2121.2,2120.8,5.83892058]
[1773565886258,8.48509173,2121.2,2120.6,5.83892058]
[1773565886464,8.48509173,2121.2,2120.6,9.69887813]
[1773565886665,8.48509173,2121.2,2120.7,3.8748199]
[1773565887166,8.48509173,2121.1,2120.7,3.8748199]
[1773565887762,3.1106791,2120.9,2120.7,3.8748199]
[1773565888055,8.48509173,2121.1,2120.7,9.71374048]
[1773565889063,8.48509173,2121.1,2120.8,5.83892058]
[1773565890266,8.48509173,2121.9,2120.9,4.83137542]
[1773565890566,8.48509173,2121.9,2121.3,5.85309183]
[1773565891268,8.48934264,2121.9,2121.2,5.85309183]
[1773565891768,8.48934264,2121.9,2121.0,5.85309183]
[1773565892669,8.48934264,2121.9,2120.5,8.17854429]
[1773565894360,8.48934264,2121.9,2120.3,8.17854429]
[1773565897171,8.48509173,2121.7,2120.4,8.17854429]
[1773565898173,8.48509173,2121.7,2120.5,5.84471858]
[1773565898370,8.48509173,2121.7,2120.6,14.02326287]
[1773565898566,8.48509173,2121.7,2120.7,5.84471858]
[1773565898767,8.48509173,2121.7,2120.8,5.84471858]
[1773565898966,8.48509173,2121.7,2120.9,5.84471858]
[1773565899171,8.48509173,2121.7,2121.0,5.84471858]
[1773565899474,8.48509173,2121.7,2120.6,8.17854429]
[1773565899772,8.48509173,2121.7,2120.7,14.02324002]
[1773565900066,8.48509173,2121.7,2120.8,14.02324002]
[1773565900267,8.48509173,2121.7,2120.9,5.84469573]
[1773565900468,8.48509173,2121.7,2121.0,5.84469573]
[1773565900772,8.48509173,2121.7,2121.1,2.11497742]
[1773565900970,8.48509173,2121.7,2120.8,8.17854429]
[1773565901772,8.48509173,2121.7,2120.4,8.17854429]
[1773565904176,8.48509173,2121.7,2120.5,8.17854429]
[1773565904367,8.48509173,2121.7,2120.8,8.17854429]
[1773565904773,8.48509173,2121.7,2120.8,15.49490908]
[1773565904983,8.48509173,2121.7,2120.9,8.17854429]
[1773565905172,10.008,2121.8,2120.9,8.17854429]
[1773565905377,10.008,2121.8,2121.0,8.17854429]
[1773565905576,18.49309173,2121.8,2121.0,8.17854429]
[1773565905778,8.48509173,2121.8,2121.0,8.17854429]
[1773565907080,8.48509173,2121.8,2121.1,8.17854429]
[1773565912892,8.48509173,2121.8,2121.2,14.30808457]
[1773565913088,8.48509173,2121.8,2121.3,14.30808457]
[1773565913288,8.48509173,2121.8,2121.4,5.64010433]
[1773565913489,8.48509173,2121.8,2121.3,8.66798024]
[1773565913690,8.48509173,2121.8,2121.4,5.63938738]
[1773565913893,8.48509173,2121.8,2121.3,8.66798024]
[1773565914092,8.48509173,2121.8,2121.4,5.63937674]
[1773565914290,8.48509173,2121.8,2121.3,8.66798024]
[1773565914489,8.48509173,2121.8,2121.4,5.63873473]
[1773565914692,8.48509173,2121.8,2121.3,8.66798024]
[1773565914891,8.48509173,2121.8,2121.4,5.63873083]
[1773565915094,8.48509173,2121.8,2121.3,8.66798024]
[1773565915293,8.48509173,2121.8,2121.4,5.63814765]
[1773565915494,8.48509173,2121.8,2121.3,8.66798024]
[1773565915696,8.48509173,2121.8,2121.4,5.63814054]
[1773565915892,8.48509173,2121.8,2121.3,8.66798024]
[1773565916094,8.48509173,2121.8,2121.4,5.63814289]
[1773565916295,8.48509173,2121.8,2121.3,8.66798024]
[1773565916598,8.48509173,2121.8,2121.4,14.30560349]
[1773565916796,8.48509173,2121.8,2121.4,8.66798024]
[1773565917096,8.48509173,2121.8,2121.0,8.66798024]
[1773565917297,8.48509173,2121.8,2121.2,8.66798024]
[1773565917597,8.48509173,2121.8,2121.4,8.66798024]
[1773565917793,8.48509173,2121.8,2121.0,8.66798024]
[1773565917993,8.48509173,2121.8,2121.1,5.63723277]
[1773565918193,8.48509173,2121.8,2121.3,8.66798024]
[1773565918394,8.48509173,2121.8,2121.4,5.63723277]
[1773565918595,8.48509173,2121.8,2121.3,8.66798024]
[1773565918795,8.48509173,2121.8,2121.4,5.63696037]
[1773565918995,8.48509173,2121.8,2121.3,8.66798024]
[1773565919196,8.48509173,2121.8,2121.4,5.63789575]
[1773565919397,8.48509173,2121.8,2121.3,8.66798024]
[1773565919598,8.48509173,2121.8,2121.4,5.63804172]
[1773565919798,8.48509173,2121.8,2120.9,8.66798024]
[1773565920093,8.48509173,2121.8,2121.1,8.66798024]
[1773565920300,8.48509173,2121.8,2121.3,8.66798024]
[1773565920496,8.48509173,2121.8,2121.4,5.63804116]
[1773565920800,8.48509173,2121.8,2121.3,8.66798024]
[1773565921096,8.48509173,2121.8,2121.4,5.63783899]
[1773565921299,8.48509173,2121.8,2121.1,8.66798024]
[1773565921496,8.48509173,2121.8,2121.2,14.3061151]
[1773565921697,8.48509173,2121.8,2121.3,14.3061151]
[1773565921999,8.48509173,2121.8,2121.4,5.63813486]
[1773565922199,8.48509173,2121.8,2121.3,8.66798024]
[1773565922398,8.48509173,2121.8,2121.4,5.63794236]
[1773565922600,8.48509173,2121.8,2121.3,8.66798024]
[1773565922796,8.48509173,2121.8,2121.4,5.63793579]
[1773565923101,8.48509173,2121.8,2121.3,8.66798024]
[1773565923403,8.48509173,2121.8,2121.4,5.63831958]
[1773565923599,8.48509173,2121.8,2121.3,8.66798024]
[1773565923799,8.48509173,2121.8,2121.4,5.63831959]
[1773565924000,8.48509173,2121.8,2121.3,8.66798024]
[1773565924299,8.48509173,2121.8,2121.4,5.63831905]
[1773565924499,8.48509173,2121.8,2121.3,8.66798024]
[1773565924701,8.48509173,2121.8,2121.4,5.63892532]
[1773565924900,8.48509173,2121.8,2121.3,8.66798024]
[1773565925101,8.48509173,2121.8,2121.4,5.63892478]
[1773565925302,8.48509173,2121.8,2121.3,8.66798024]
[1773565925501,8.48509173,2121.8,2121.4,5.6399069]
[1773565925704,8.48509173,2121.8,2121.1,8.66798024]
[1773565926004,8.48509173,2121.8,2121.2,5.64027002]
[1773565926200,8.48509173,2121.8,2121.3,14.30825026]
[1773565926400,8.48509173,2121.8,2121.4,5.64027002]
[1773565926601,8.48509173,2121.8,2121.3,8.66798024]
[1773565926802,8.48509173,2121.8,2121.4,5.64154295]
[1773565926999,8.48509173,2121.8,2120.9,5.84320722]
[1773565927198,8.48509173,2121.8,2120.8,15.98434503]
[1773565927199,8.48509173,2121.8,2121.0,5.64355405]
[1773565927403,8.48509173,2121.8,2120.8,8.66798024]
[1773565928302,8.86284033,2121.6,2120.8,8.66798024]
[1773565934907,8.86284033,2121.6,2120.7,8.66798024]
[1773565936411,8.86284033,2121.6,2120.4,8.66798024]
[1773565937512,8.86284033,2121.4,2120.4,8.66798024]
[1773565937708,8.86284033,2121.2,2120.4,8.66798024]
[1773565937912,18.88784033,2121.2,2120.4,8.66798024]
[1773565938114,18.88784033,2121.2,2120.5,8.66798024]
[1773565938509,8.86284033,2121.1,2120.5,8.66798024]
[1773565939409,8.86284033,2121.1,2120.6,5.52705034]
[1773565939714,8.86284033,2121.1,2120.8,8.66798024]
[1773565940819,8.86284033,2121.1,2120.4,8.66798024]
[1773565941019,8.86284033,2121.1,2120.6,8.66798024]
[1773565941217,8.86284033,2121.1,2120.7,5.51866237]
[1773565941411,8.86284033,2121.1,2120.6,8.66798024]
[1773565941615,8.86284033,2121.1,2120.7,13.85546259]
[1773565941816,8.86284033,2121.1,2120.7,8.33722455]
[1773565942820,8.86284033,2121.1,2120.4,8.33722455]
[1773565943009,8.86284033,2121.1,2120.5,5.51787574]
[1773565943215,8.86284033,2121.1,2120.6,5.51738746]
[1773565943518,8.86284033,2121.1,2120.4,8.33722455]
[1773565943717,8.86284033,2121.1,2120.5,13.8546128]
[1773565943918,8.86284033,2121.1,2120.6,5.51738825]
[1773565944118,8.86284033,2121.1,2120.5,8.33722455]
[1773565944313,8.86284033,2121.1,2120.6,5.51700005]
[1773565944516,8.86284033,2121.1,2120.3,8.33722455]
[1773565944819,8.86284033,2121.1,2120.4,5.51847844]
[1773565945021,8.86284033,2121.1,2120.3,8.33722455]
[1773565945221,8.86284033,2121.1,2120.4,5.51848358]
[1773565945420,8.86284033,2121.1,2120.3,8.33722455]
[1773565945616,8.86284033,2121.1,2120.4,5.50624236]
[1773565945816,8.86284033,2121.1,2120.1,8.3408249]
[1773565946022,8.86284033,2121.1,2120.2,5.50628749]
[1773565946320,8.86284033,2121.1,2120.3,5.50628749]
[1773565946521,8.86284033,2121.1,2120.2,8.33722455]
[1773565946721,8.86284033,2121.1,2120.3,5.50554487]
[1773565946922,8.86284033,2121.1,2120.2,8.33722455]
[1773565947112,8.86284033,2121.1,2120.3,5.50589302]
[1773565947317,8.86284033,2121.1,2120.2,8.33722455]
[1773565947517,8.86284033,2121.1,2120.3,5.50478959]
[1773565947719,8.86284033,2121.1,2120.2,8.33722455]
[1773565947922,8.86284033,2121.1,2120.3,5.50486063]
[1773565948124,8.86284033,2121.1,2120.2,8.33722455]
[1773565948419,8.86284033,2121.1,2120.1,0.00360035]
[1773565948624,8.86284033,2121.1,2120.1,8.3408249]
[1773565949518,8.3667354,2120.8,2120.1,8.3408249]
[1773565949718,18.4067354,2120.7,2120.1,8.3408249]
[1773565950820,8.3667354,2120.6,2120.1,8.3408249]
[1773565951125,8.3667354,2120.6,2120.1,0.00360035]
[1773565951327,8.3667354,2120.6,2120.1,8.3408249]
[1773565952525,18.4067354,2120.7,2120.1,8.3408249]
[1773565952927,8.3667354,2120.6,2120.1,8.3408249]
[1773565958326,10.04,2120.7,2119.8,3.8993936]
[1773565958327,1.77931978,2120.2,2119.8,3.8993936]
[1773565958528,10.063,2120.2,2119.8,8.33722455]
[1773565958829,8.3667354,2120.5,2119.8,8.33722455]
[1773565959028,18.4307354,2120.5,2120.0,8.33722455]
[1773565959428,18.4355983,2120.5,2120.0,8.34140155]
[1773565960030,8.3667354,2120.4,2120.0,8.34140155]
[1773565962632,8.3667354,2120.4,2120.0,0.004177]
[1773565963132,10.14605518,2120.4,2119.6,3.8993936]
[1773565963435,8.3667354,2120.1,2119.7,13.83131655]
[1773565963629,8.3667354,2120.0,2119.7,8.33722455]
[1773565964126,10.079,2120.1,2119.7,8.34120519]
[1773565964328,10.079,2120.1,2119.9,8.33722455]
[1773565964530,10.082,2120.2,2119.9,8.33722455]
[1773565964730,8.3667354,2120.1,2119.8,8.33722455]
[1773565965125,8.3667354,2120.1,2119.7,8.34120519]
[1773565965325,8.3667354,2120.1,2119.8,5.49477905]
[1773565965536,8.3667354,2120.1,2119.7,8.34120519]
[1773565965737,8.3667354,2120.1,2119.8,5.49475943]
[1773565965937,8.3667354,2120.1,2119.7,8.34120519]
[1773565966234,8.3667354,2120.1,2119.8,5.49476998]
[1773565966436,8.3667354,2120.1,2119.7,8.34120519]
[1773565966736,18.4487354,2120.2,2119.9,8.33722455]
[1773565966939,10.082,2120.2,2119.9,8.33722455]
[1773565967838,18.4487354,2120.2,2119.9,8.33722455]
[1773565968438,10.082,2120.2,2119.9,8.33722455]
[1773565968835,8.3667354,2120.1,2119.8,8.33722455]
[1773565969027,8.3667354,2120.1,2119.6,12.23661815]
[1773565969235,8.3667354,2120.1,2119.7,5.49674689]
[1773565969536,8.3667354,2120.1,2119.5,8.33722455]
[1773565969738,8.3667354,2120.1,2119.6,5.5031179]
[1773565970039,8.3667354,2120.1,2119.5,8.33722455]
[1773565970241,8.3667354,2120.1,2119.6,13.84492374]
[1773565970440,8.3667354,2120.1,2119.6,8.34181475]
[1773565971241,8.3667354,2120.1,2119.6,0.0045902]
[1773565971540,8.3667354,2120.1,2119.6,8.53577243]
[1773565974442,8.3667354,2120.1,2119.6,0.0045902]
[1773565975944,8.28497814,2119.9,2119.6,0.0045902]
[1773565976145,8.28497814,2119.9,2119.3,12.45095566]
[1773565976347,8.28497814,2119.9,2119.4,14.05807534]
[1773565976540,8.28497814,2119.9,2119.5,5.50651328]
[1773565976845,8.28497814,2119.9,2119.4,8.55156206]
[1773565977145,8.28497814,2119.7,2119.5,5.50651394]
[1773565977446,8.28497814,2119.7,2119.4,8.5576821]
[1773565977642,8.28497814,2119.7,2119.5,5.50650841]
[1773565977941,8.28497814,2119.7,2119.4,0.00612004]
[1773565978142,8.28497814,2119.7,2119.5,5.50732337]
[1773565978346,8.28497814,2119.7,2119.4,8.5576821]
[1773565978545,8.28497814,2119.7,2119.5,5.5070076]
[1773565978747,18.41797814,2119.8,2119.4,8.5576821]
[1773565979047,18.41797814,2119.8,2119.5,14.05384173]
[1773565979344,18.41797814,2119.8,2119.5,8.55156206]
[1773565979546,8.28497814,2119.7,2119.4,8.5576821]
[1773565979743,8.28497814,2119.7,2119.5,5.50213977]
[1773565979941,5.1426353,2119.7,2119.4,8.5576821]
[1773565980145,10.133,2119.8,2119.6,8.55156206]
[1773565980447,8.28497814,2120.4,2119.6,8.55156206]
[1773565980644,8.28497814,2120.2,2119.6,8.55156206]
[1773565982146,8.28497814,2120.2,2119.4,0.00612004]
[1773565982347,8.28497814,2120.2,2119.5,14.05342689]
[1773565982650,8.28497814,2120.2,2119.6,5.50186483]
[1773565982844,8.28497814,2120.2,2119.5,8.55156206]
[1773565983041,8.28497814,2120.2,2119.6,5.50187066]
[1773565983241,8.28497814,2120.2,2119.5,8.55156206]
[1773565983445,8.28497814,2120.2,2119.6,5.50238189]
[1773565983645,8.28497814,2120.2,2119.5,8.55156206]
[1773565983842,8.28497814,2120.2,2119.6,14.05393694]
[1773565984051,8.28497814,2120.2,2119.6,8.55156206]
[1773565985650,8.28497814,2120.2,2119.8,8.55156206]
[1773565986652,8.28497814,2120.2,2119.5,8.55156206]
[1773565986854,8.28497814,2120.2,2119.6,14.05749212]
[1773565987054,8.28497814,2120.2,2119.7,14.05749212]
[1773565987251,8.28497814,2120.2,2119.7,8.55156206]
[1773565989654,8.28497814,2120.2,2119.6,8.55156206]
[1773565989862,8.28497814,2120.2,2119.7,5.51028714]
[1773565990060,8.28497814,2120.2,2119.6,8.55156206]
[1773565990261,8.28497814,2120.2,2119.7,5.51049043]
[1773565990467,8.28497814,2120.2,2119.6,8.55156206]
[1773565990760,8.28497814,2120.2,2119.4,3.90551364]
[1773565990761,18.43197814,2120.3,2119.8,8.55156206]
[1773565990963,18.43197814,2120.3,2119.9,5.50957793]
[1773565991158,18.43197814,2120.3,2120.0,8.55156206]
[1773565991368,10.189,2120.2,2120.0,8.55156206]
[1773565992868,8.28497814,2120.4,2120.0,8.55156206]
[1773565993071,10.195,2120.3,2120.0,8.55156206]
[1773565994171,9.92751736,2120.3,2120.1,5.50922288]
[1773565994469,9.92751736,2120.3,2120.2,8.55156206]
[1773565994668,8.28984104,2120.5,2120.2,8.55156206]
[1773565994869,18.49084104,2120.5,2120.2,8.55156206]
[1773565995064,10.2058629,2120.5,2120.2,8.55156206]
[1773565995270,8.28497814,2120.9,2120.3,5.50648887]
[1773565995471,18.48797814,2120.8,2120.5,8.55156206]
[1773565995665,18.48897814,2120.8,2120.5,8.55156206]
[1773565996367,18.4924196,2120.8,2120.5,8.55156206]
[1773566003474,8.2022906,2120.7,2120.3,8.44355535]
[1773566004976,8.2022906,2120.7,2120.1,8.44355535]
[1773566005178,8.2022906,2120.7,2120.2,13.94245512]
[1773566005380,8.2022906,2120.7,2120.2,8.44355535]
[1773566011283,8.2022906,2120.7,2120.3,13.94496054]
[1773566011483,8.2022906,2120.7,2120.3,8.44355535]
[1773566011977,8.20573206,2120.8,2120.3,8.44355535]
[1773566016088,8.20573206,2120.8,2120.1,8.44355535]
[1773566016287,8.20573206,2120.8,2120.2,5.50660549]
[1773566016481,8.20573206,2120.8,2120.3,5.50660549]
[1773566016682,8.20573206,2120.8,2120.1,8.44355535]
[1773566016882,8.20573206,2120.8,2120.2,5.50674593]
[1773566017087,8.20573206,2120.8,2120.3,5.50674593]
[1773566017277,8.20573206,2120.8,2120.0,3.8993936]
[1773566017477,9.98639533,2120.8,2120.1,5.50937668]
[1773566017682,9.98639533,2120.8,2120.0,8.44355535]
[1773566017878,9.98639533,2120.8,2120.1,5.51012259]
[1773566018083,9.98639533,2120.8,2120.0,8.44355535]
[1773566018282,9.98639533,2120.8,2120.1,5.51175146]
[1773566018585,9.98639533,2120.8,2120.0,8.44355535]
[1773566018788,9.98639533,2120.8,2120.1,5.51186534]
[1773566018989,9.98639533,2120.8,2120.0,8.44355535]
[1773566019187,9.98639533,2120.8,2120.1,5.51191826]
[1773566019384,9.98639533,2120.8,2120.0,8.44355535]
[1773566019587,9.98639533,2120.8,2120.1,5.51400414]
[1773566019789,9.98639533,2120.8,2120.0,8.44355535]
[1773566019983,9.98639533,2120.8,2120.1,5.51408095]
[1773566020185,9.98639533,2120.8,2120.2,5.51663233]
[1773566020390,9.98639533,2120.8,2120.0,8.44355535]
[1773566020591,9.98639533,2120.8,2120.1,5.51670318]
[1773566020792,9.98639533,2120.8,2119.9,3.8993936]
[1773566020989,9.98639533,2120.8,2120.0,5.51682147]
[1773566021188,9.98639533,2120.8,2119.8,12.34294895]
[1773566021189,9.98639533,2120.8,2119.9,3.8993936]
[1773566021993,9.98639533,2120.8,2119.8,12.34294895]
[1773566023592,9.98639533,2120.8,2119.8,8.44355535]
[1773566025694,8.20573206,2120.8,2119.8,8.44355535]
[1773566025890,8.20573206,2120.8,2119.9,8.44355535]
[1773566035401,9.98639533,2120.8,2119.8,3.8993936]
[1773566035700,9.98639533,2120.8,2119.7,11.06219709]
[1773566036105,9.98639533,2120.8,2119.8,7.16280349]
[1773566037905,9.98639533,2120.8,2119.7,11.06219709]
[1773566039005,8.20573206,2120.8,2119.8,7.16280349]
[1773566039304,8.20573206,2120.8,2119.9,7.16280349]
[1773566041701,7.41216509,2120.3,2119.9,7.16280349]
[1773566041903,7.41216509,2120.3,2119.8,7.16280349]
[1773566042705,7.41216509,2120.3,2119.7,3.8993936]
[1773566042908,7.41216509,2120.1,2119.6,7.16280349]
[1773566045811,8.14929596,2120.0,2119.6,7.16280349]
[1773566046013,0.73713087,2119.9,2119.6,7.16280349]
[1773566046912,7.41216509,2120.0,2119.6,7.16280349]
[1773566047109,9.19222911,2120.2,2119.6,7.16280349]
[1773566047313,8.14929596,2120.1,2119.6,7.16280349]
[1773566047515,0.73713087,2120.0,2119.6,7.16280349]
[1773566048410,0.73713087,2120.1,2119.6,7.16280349]
[1773566048808,0.73713087,2120.2,2119.6,7.16280349]
[1773566049314,8.14929596,2120.2,2119.6,7.16280349]
[1773566049512,8.14929596,2120.1,2119.6,7.16280349]
[1773566049714,7.41216509,2120.2,2119.6,7.16280349]
[1773566049914,0.73164962,2120.1,2119.6,7.16280349]
[1773566050313,0.73164962,2120.2,2119.6,7.16280349]
[1773566054012,12.11906402,2120.4,2119.6,7.16280349]
[1773566054208,0.70712877,2120.3,2119.6,7.16280349]
[1773566055816,0.70712877,2120.3,2119.6,11.06219709]
[1773566056020,0.70712877,2120.3,2119.7,7.16280349]
[1773566058020,8.11929386,2120.3,2119.7,7.16280349]
[1773566058220,0.70712877,2120.2,2119.7,7.16280349]
[1773566058818,8.11929386,2120.2,2119.7,7.16280349]
[1773566059019,7.41216509,2120.2,2119.7,7.16280349]
[1773566062323,12.11906402,2120.4,2119.7,7.16280349]
[1773566062324,18.69412294,2120.4,2119.7,7.16280349]
[1773566062528,0.6797712,2120.3,2119.7,7.16280349]
[1773566063224,10.339,2120.4,2119.8,6.67224584]
[1773566063820,16.96305892,2120.7,2119.9,6.67224584]
[1773566066220,6.57505892,2120.6,2119.9,6.67224584]
[1773566068128,6.57505892,2120.6,2120.0,6.67224584]
[1773566068823,10.388,2120.7,2120.0,6.67224584]
[1773566069222,16.96305892,2120.7,2120.0,6.67224584]
[1773566070829,6.57505892,2120.6,2120.0,6.67224584]
[1773566072533,16.99305892,2120.6,2120.0,6.67224584]
[1773566072829,6.57505892,2120.3,2120.0,6.67224584]
[1773566074127,6.57505892,2120.3,2119.9,6.67224584]
[1773566076333,6.57505892,2120.5,2119.9,6.67224584]
[1773566080141,6.57505892,2120.3,2119.9,6.67224584]
[1773566080336,6.57505892,2120.3,2119.8,6.67224584]
[1773566081538,6.57505892,2120.1,2119.8,6.67224584]
[1773566081836,6.57505892,2120.1,2119.6,3.8993936]
[1773566081837,6.57505892,2120.1,2119.7,6.67224584]
[1773566087745,6.57505892,2120.1,2119.6,10.57163944]
[1773566088442,6.57505892,2120.1,2119.6,6.67224584]
[1773566090642,6.57505892,2120.1,2119.5,6.14224165]
[1773566092645,6.57505892,2120.1,2119.4,9.84639898]
[1773566092844,10.451,2120.2,2119.5,5.94088534]
[1773566093040,16.41648316,2120.2,2119.6,5.94088534]
[1773566093443,10.451,2120.2,2119.6,5.94088534]
[1773566093843,5.96548316,2120.1,2119.6,5.94088534]
[1773566094344,16.41648316,2120.2,2119.6,5.94088534]
[1773566094847,5.96548316,2120.1,2119.6,5.94088534]
[1773566095048,5.96548316,2120.0,2119.6,5.94088534]
[1773566095450,5.96548316,2120.1,2119.6,5.94088534]
[1773566096347,5.96548316,2120.0,2119.6,5.94088534]
[1773566096949,5.96548316,2120.0,2119.5,5.94088534]
[1773566097148,16.47748316,2119.9,2119.5,5.94088534]
[1773566097547,5.96548316,2119.8,2119.5,5.94088534]
[1773566097746,5.96548316,2119.8,2119.5,4.26292888]
[1773566098156,5.96548316,2119.8,2119.5,4.22762888]
[1773566098350,16.47748316,2119.9,2119.5,4.22762888]
[1773566098849,5.96548316,2119.8,2119.5,4.22762888]
[1773566099954,5.96548316,2119.8,2119.4,5.94700538]
[1773566100347,16.47748316,2119.9,2119.4,5.94700538]
[1773566100543,5.96548316,2119.8,2119.4,5.94700538]
[1773566100850,5.96548316,2119.6,2119.1,50.24399189]
[1773566101047,5.96548316,2119.6,2119.1,9.44399189]
[1773566101246,5.96548316,2119.6,2119.1,5.94088534]
[1773566101645,5.96548316,2120.2,2119.1,5.94088534]
[1773566101849,5.96548316,2120.0,2119.1,5.94478429]
[1773566103955,5.77678316,2120.0,2119.1,5.94478429]
[1773566105056,6.58194049,2119.9,2119.1,5.94478429]
[1773566105251,5.96548316,2119.9,2119.1,5.94478429]
[1773566105865,5.96548316,2119.7,2119.1,5.94478429]
[1773566106057,5.96548316,2119.5,2119.1,5.94478429]
[1773566107060,5.96548316,2119.5,2118.7,5.94088534]
[1773566107970,5.96548316,2119.5,2118.7,5.94554862]
[1773566108568,5.96548316,2119.5,2118.7,0.00466328]
[1773566109467,5.96548316,2119.3,2118.3,46.74088534]
[1773566109664,5.96548316,2119.1,2118.3,46.74088534]
[1773566109863,5.96548316,2119.1,2118.4,5.94088534]
[1773566110465,5.96971945,2119.1,2118.4,5.9457605]
[1773566110666,5.96548316,2119.4,2118.4,5.9457605]
[1773566111669,5.96968776,2119.4,2118.4,5.9457605]
[1773566112168,0.0042046,2119.4,2118.4,5.9457605]
[1773566112868,5.96968776,2119.4,2118.4,5.9457605]
[1773566113869,0.0042046,2119.4,2118.4,5.9457605]
[1773566115058,5.96968776,2119.4,2118.4,5.9457605]
[1773566115259,5.96968776,2119.4,2118.5,5.94088534]
[1773566119666,5.96968776,2119.4,2118.4,5.9457605]
[1773566120372,5.96968776,2119.4,2118.4,0.00487516]
[1773566120574,5.96548316,2119.2,2118.4,0.00487516]
[1773566120775,5.96548316,2119.2,2118.4,5.9457605]
[1773566121672,5.96548316,2119.2,2118.4,0.00487516]
[1773566122068,5.96548316,2119.2,2118.4,5.69290898]
[1773566124164,5.6803031,2119.4,2118.4,5.69290898]
[1773566127475,5.6760985,2119.1,2118.4,0.00487516]
[1773566128276,5.6760985,2118.9,2118.4,0.00487516]
[1773566128477,5.6760985,2118.9,2118.4,5.69290898]
[1773566131781,10.574,2119.0,2118.4,5.69290898]
[1773566132381,16.2500985,2119.0,2118.4,5.69290898]
[1773566134085,5.6760985,2118.9,2118.4,5.69290898]
[1773566134482,10.574,2119.0,2118.4,5.69290898]
[1773566134679,16.2500985,2119.0,2118.4,5.69290898]
[1773566135586,5.6760985,2119.0,2118.4,5.69290898]
[1773566136184,10.581,2119.3,2118.4,5.69290898]
[1773566136384,16.2570985,2119.3,2118.5,5.68803382]
[1773566136883,16.2570985,2119.3,2118.6,5.68803382]
[1773566137084,5.6760985,2119.3,2118.6,5.68803382]
[1773566139485,5.6150985,2119.3,2118.6,5.68803382]
[1773566143588,5.6150985,2119.3,2118.4,11.5361162]
[1773566143888,5.6150985,2119.3,2118.5,5.68803382]
[1773566145188,5.6760985,2119.2,2118.5,5.68803382]
[1773566146686,5.6760985,2119.2,2118.4,5.69290898]
[1773566152388,5.6760985,2119.2,2118.4,0.00487516]
[1773566153291,5.6760985,2119.2,2118.4,5.37556886]
[1773566157796,10.588,2119.3,2118.4,5.37556886]
[1773566157997,15.75497945,2119.3,2118.4,5.37556886]
[1773566159398,5.16697945,2119.2,2118.4,5.37556886]
[1773566161701,5.16697945,2118.9,2118.4,5.37556886]
[1773566162403,15.75497945,2119.3,2118.5,5.3706937]
[1773566162600,5.16697945,2119.2,2118.6,5.3706937]
[1773566166604,15.78397945,2119.3,2118.6,5.3706937]
[1773566167399,0.0042046,2119.4,2118.8,5.3706937]